Cogmind - Beta 10 X1 @@@ ROGUE MODE // 2020.06.14 @ 14:52:50 Player: Decinym Result: Destroyed by EX-DEC with AWS/EX-DEC Performance ------------- Evolutions (1) 500 Regions Visited (5) 1000 Robots Destroyed (67) 335 Value Destroyed (892) 892 Prototype IDs (25) 500 Alien Tech Used (0) 0 Bonus (-1392) -1392 TOTAL SCORE: 1835 Bonus ------- High Alert Combat Kills 29 Aligned with FarCom 300 Friendly Fire -1721 Cogmind --------- Core Integrity 0/400 Matter 230/300 Energy 100/100 System Corruption 0% Temperature Cool (0) Movement Treading (185) Ox2 Location -9/Exiles Parts ------- > --- POWER (1) -------- (None) > --- PROPULSION (3) --- Advanced Treads > --- UTILITY (3) ------ Large Storage Unit High-capacity Storage Unit > --- WEAPON (2) ------- Mini Grenade Launcher > --- INVENTORY (18) --- Improved Heat Sink YI-UF0's Bottomless Matter Pit (818) Advanced Signal Interpreter Hacking Suite EM Shotgun Field Lobotomy Kit Peak State ------------ > --- POWER ------------ Improved Ion Engine > --- PROPULSION ------- Advanced Treads Advanced Treads Advanced Treads > --- UTILITY ---------- Large Storage Unit High-capacity Storage Unit Hardened Light Armor Plating > --- WEAPON ----------- Assault Cannon Assault Cannon > --- INVENTORY -------- Light Ion Engine Light Treads Advanced Treads Cooling System YI-UF0's Bottomless Matter Pit Advanced Signal Interpreter Hacking Suite Heavy EM Pulse Gun Heavy EM Pulse Gun EM Shotgun Beam Rifle Assault Cannon Mini Grenade Launcher YI-UF0's Doublenader Field Lobotomy Kit Deploy-a-Sentry Deploy-a-Sentry Deploy-a-Sentry [Rating: 27] Favorites ----------- Power Light Ion Engine Engine Light Ion Engine Power Core Light Nuclear Core Propulsion Advanced Treads Treads Advanced Treads Leg Aluminum Leg Utility Large Storage Unit Device Cooling System Storage Large Storage Unit Processor Advanced Signal Interpreter Protection Hardened Light Armor Plating Weapon Assault Cannon Energy Gun Beam Rifle Ballistic Gun Assault Rifle Ballistic Cannon Assault Cannon Launcher YI-UF0's Doublenader Build | -11 -10 -10 -9 -9 -9 ------- Run | Scr Mat Min Mat Min Exi Slots Evolved 2 | . . . 2 . . Power . | . . . . . . Propulsion 1 | . . . 1 . . Utility 1 | . . . 1 . . Weapon . | . . . . . . Parts Attached 51 | . . 4 27 . 20 Power 4 | . . . 2 . 2 Engine 3 | . . . 2 . 1 Core 1 | . . . . . 1 Reactor . | . . . . . . Propulsion 8 | . . . 6 . 2 Treads 8 | . . . 6 . 2 Leg . | . . . . . . Wheel . | . . . . . . Hover . | . . . . . . Flight . | . . . . . . Utility 13 | . . 3 6 . 4 Device 2 | . . . . . 2 Storage 7 | . . 3 4 . . Processor 1 | . . . 1 . . Hackware . | . . . . . . Protection 3 | . . . 1 . 2 Artifact . | . . . . . . Weapon 26 | . . 1 13 . 12 Energy Gun 10 | . . . 4 . 6 Energy Cannon . | . . . . . . Ballistic Gun 4 | . . . 4 . . Ballistic Cannon 5 | . . . 2 . 3 Launcher 7 | . . 1 3 . 3 Special Weapon . | . . . . . . Impact Weapon . | . . . . . . Slashing Weapon . | . . . . . . Piercing Weapon . | . . . . . . Special Melee Weapon . | . . . . . . Unidentified Prototypes 2 | . . 2 . . . Parts Lost 21 | . . . 4 . 17 Power 4 | . . . 1 . 3 Propulsion 4 | . . . . . 4 Utility 2 | . . . . . 2 Weapon 11 | . . . 3 . 8 Highest Loss Streak 12 | . . . 3 . 12 Average Slot Usage (%) 93 | . 85 99 96 100 87 Engine 10 | . 14 14 10 11 7 Treads 23 | . . . 27 33 29 Leg 6 | . 28 28 2 . . Storage 22 | . 14 27 22 22 22 Processor 2 | . . . 5 . . Protection 5 | . . . 5 11 8 Energy Gun 7 | . 14 14 8 . 2 Ballistic Gun 5 | . 14 10 6 . . Ballistic Cannon 7 | . . . 5 22 14 Launcher 1 | . . 3 . . . Naked Turns . | . . . . . . Heaviest Build 70 | 10 10 31 70 70 70 Greatest Support 66 | 20 20 20 66 66 66 Greatest Overweight (x) 2 | . . 1 1 1 2 Average Overweight (x) . | . . . . 1 . Largest Inventory Capacity 18 | . 6 12 18 18 18 Average Capacity 15 | . 6 11 14 18 18 Most Carried 18 | . 6 12 18 18 18 Average Carried 13 | . 5 9 14 18 13 Final Capacity 18 | 6 6 12 18 18 18 Final Carried 18 | 6 6 12 18 18 6 Class Distribution -------------------- 100% | Mutant Dominant Class ---------------- Mutant | -10/Materials Mutant | -10/Mines Mutant | -9/Materials Mutant | -9/Mines Mutant | -9/Exiles Resources | -11 -10 -10 -9 -9 -9 ----------- Run | Scr Mat Min Mat Min Exi Matter Collected 2221 | 191 . 96 1283 . 651 Remotely . | . . . . . . Salvage Created 1403 | . . 303 1026 . 74 Parts 90 | . . 17 69 . 4 Haulers Intercepted 2 | . . . 2 . . Recyclers Shooed 1 | . . . 1 . . Parts Field Recycled . | . . . . . . Retrieved Matter . | . . . . . . Parts Self-Destructed . | . . . . . . Prevented . | . . . . . . Kills | -11 -10 -10 -9 -9 -9 ------- Run | Scr Mat Min Mat Min Exi Combat Hostiles Destroyed 46 | . . 15 27 . 4 Guns 14 | . . 3 11 . . Cannons 5 | . . . 4 . 1 AOE 27 | . . 12 12 . 3 Classes Destroyed 12 | . . 4 6 . 2 Worker 4 | . . . 4 . . Builder 1 | . . . 1 . . Hauler 2 | . . . 2 . . Recycler 2 | . . 1 1 . . Operator 2 | . . . 2 . . Turret 1 | . . . . . 1 Watcher 2 | . . . 2 . . Swarmer 14 | . . 3 11 . . Grunt 9 | . . . 8 . 1 Sentry 8 | . . . 8 . . Zionite 2 | . . . . . 2 Assembled 17 | . . 12 . . 5 Thug 1 | . . 1 . . . Best Kill Streak 14 | . . 12 14 . 3 Combat Bots Only 12 | . . 12 12 . 3 Max Kills in Single Turn 7 | . . 7 4 . 3 Gunslinging 1 | . . . 1 . . Exploded 6 | . . 6 3 . 3 Melee . | . . . . . . Uniques/NPCs Destroyed 2 | . . 1 . . 1 YI-UF0 (-10/Mines) EX-HEX (-9/Exiles) 8R-AWN (-9/Exiles) Combat | -11 -10 -10 -9 -9 -9 -------- Run | Scr Mat Min Mat Min Exi Damage Taken 3199 | . . 119 963 . 2117 Core 438 | . . 27 131 . 280 Absorbed by Shields . | . . . . . . Core Remaining (%) 94 | 100 . 89 . . . Volleys Fired 149 | . . 22 71 2 54 Largest 2 | . . 2 2 2 2 Hottest 110 | . . 110 110 88 90 Shots Fired 243 | . . 28 126 4 85 Gun 160 | . . 23 97 . 40 Cannon 55 | . . . 15 4 36 Launcher 28 | . . 5 14 . 9 Special . | . . . . . . Kinetic 108 | . . 5 63 4 36 Thermal 43 | . . . 40 . 3 Explosive 28 | . . 5 14 . 9 Electromagnetic 64 | . . 18 9 . 37 Robot Hit Streak 14 | . . 5 12 . 14 Robot Miss Streak 3 | . . 3 3 . 3 Penetration Max . | . . . . . . Secondary Targets 3 | . . 1 2 . . Max Gunslinging Chain 1 | . . 1 1 . . Shots Hit Robots 166 | . . 17 94 . 55 Core Hits 126 | . . 34 60 . 32 Critical Hits . | . . . . . . Critical Kills . | . . . . . . Critical Parts Destroyed . | . . . . . . Melee Attacks . | . . . . . . Impact . | . . . . . . Slashing . | . . . . . . Piercing . | . . . . . . Sneak Attacks . | . . . . . . Combat Hostiles . | . . . . . . Follow-up Attacks . | . . . . . . Damage Inflicted 4607 | . . 929 2111 . 1567 Guns 1239 | . . 159 927 . 153 Cannons 867 | . . . 197 . 670 Explosions 2501 | . . 770 987 . 744 Melee . | . . . . . . Ramming . | . . . . . . Kinetic 1256 | . . 10 576 . 670 Thermal 597 | . . . 564 . 33 Explosive 2399 | . . 770 885 . 744 Electromagnetic 355 | . . 149 86 . 120 Impact . | . . . . . . Slashing . | . . . . . . Piercing . | . . . . . . Highest Corruption . | . . . . . . Average Corruption . | . . . . . . Corruption Purged . | . . . . . . Overload Shots . | . . . . . . Overflow Damage 74 | . . 12 14 . 48 Projectiles . | . . . . . . Explosions 74 | . . 12 14 . 48 Melee . | . . . . . . Knockbacks 8 | . . . . . 8 Impact . | . . . . . . Kinetic 8 | . . . . . 8 Secondary . | . . . . . . Self-Inflicted Damage 105 | . . 14 91 . . Shots 6 | . . 2 4 . . Rammed . | . . . . . . Targets Rammed . | . . . . . . Kicked . | . . . . . . Crushed . | . . . . . . Highest Temperature 351 | . . 160 144 72 351 Average Temperature 62 | . . 50 29 39 112 Received Heat Transfer 268 | . . 40 228 . . Effects 1 | . . . . . 1 Damage (minor) 1 | . . . . . 1 Siege Activations . | . . . . . . Robots Corrupted 1 | . . 1 . . . Combat Hostiles . | . . . . . . Parts Fried 3 | . . 2 1 . . Impact Corruptions . | . . . . . . Robots Melted . | . . . . . . Combat Hostiles . | . . . . . . Parts Melted 1 | . . . 1 . . Heat Transferred 1358 | . . . 1284 . 74 Parts Sabotaged . | . . . . . . Parts Stolen . | . . . . . . Parts Stripped . | . . . . . . Power Chain Reactions 2 | . . . 2 . . Missiles Intercepted . | . . . . . . Alert | -11 -10 -10 -9 -9 -9 ------- Run | Scr Mat Min Mat Min Exi Peak Influence 472 | . 15 75 472 160 . Average Influence 220 | . 5 28 299 160 . Maximum Alert Level 2 | . . . 2 . . Low Security (%) 49 | . 100 100 27 100 . Level 1 25 | . . . 36 . . Level 2 24 | . . . 36 . . Level 3 . | . . . . . . Level 4 . | . . . . . . Level 5 . | . . . . . . High Security . | . . . . . . Max Security . | . . . . . . Squads Dispatched 6 | . . . 6 . . Investigation 2 | . . . 2 . . Extermination . | . . . . . . Reinforcement 4 | . . . 4 . . Assault . | . . . . . . Garrison . | . . . . . . Intercept . | . . . . . . Construction Impeded . | . . . . . . Haulers Reinforced . | . . . . . . Stealth | -11 -10 -10 -9 -9 -9 --------- Run | Scr Mat Min Mat Min Exi Distress Signals 1 | . . . 1 . . Communications Jammed . | . . . . . . Distress Signals . | . . . . . . Times Spotted 94 | . 1 16 37 . 40 Peak Tracking Total 12 | . 1 12 6 . 7 Tactical Retreats 7 | . . . . . 7 Traps | -11 -10 -10 -9 -9 -9 ------- Run | Scr Mat Min Mat Min Exi Traps Triggered 1 | . . . 1 . . Indirectly . | . . . . . . Trap Hack Attempts . | . . . . . . Triggered . | . . . . . . Disarmed . | . . . . . . Reprogrammed . | . . . . . . Reused . | . . . . . . Traps Extracted . | . . . . . . Installed . | . . . . . . Triggered . | . . . . . . Machines | -11 -10 -10 -9 -9 -9 ---------- Run | Scr Mat Min Mat Min Exi Machines Disabled 10 | . . . 1 . 9 Max in Single Turn 3 | . . . 1 . 3 Machines Sabotaged . | . . . . . . Garrisons Compromised . | . . . . . . Overloaded Fab Kills . | . . . . . . Fab Network Shutdowns . | . . . . . . Hacking | -11 -10 -10 -9 -9 -9 --------- Run | Scr Mat Min Mat Min Exi Machines Accessed 3 | . . . 2 . 1 Terminals . | . . . . . . Fabricators . | . . . . . . Repair Stations 1 | . . . 1 . . Recycling Units . | . . . . . . Scanalyzers 1 | . . . 1 . . Garrison Access . | . . . . . . Total Hacks 11 | . . . 10 . 1 Successful 9 | . . . 8 . 1 Failed 2 | . . . 2 . . Catastrophic . | . . . . . . Database Lockouts . | . . . . . . Manual 1 | . . . . . 1 Terminals . | . . . . . . Fabricators . | . . . . . . Repair Stations 8 | . . . 8 . . Recycling Units . | . . . . . . Scanalyzers 2 | . . . 2 . . Garrison Access . | . . . . . . Terminal Hacks 1 | . . . . . 1 EX-Prototype ID Bank 1 | . . . . . 1 Fabricator Hacks . | . . . . . . Repair Station Hacks 6 | . . . 6 . . Scan Component 3 | . . . 3 . . Repair 3 | . . . 3 . . Recycling Unit Hacks . | . . . . . . Scanalyzer 2 | . . . 2 . . Insert Component 1 | . . . 1 . . Analyze 1 | . . . 1 . . Garrison Access Hacks . | . . . . . . Unauthorized Hacks . | . . . . . . Terminals . | . . . . . . Fabricators . | . . . . . . Repair Stations . | . . . . . . Recycling Units . | . . . . . . Scanalyzers . | . . . . . . Garrison Access . | . . . . . . Data Cores Recovered . | . . . . . . Used . | . . . . . . Hacking Detections 2 | . . . 2 . . Full Trace Events 1 | . . . 1 . . Feedback Events . | . . . . . . Feedback Blocked . | . . . . . . Robot Schematics Acquired . | . . . . . . Robots Built . | . . . . . . Matter . | . . . . . . Time . | . . . . . . Total Robot Build Rating . | . . . . . . Part Schematics Acquired 1 | . . . 1 . . Parts Built . | . . . . . . Matter . | . . . . . . Time . | . . . . . . Total Part Build Rating . | . . . . . . Parts Repaired 3 | . . . 3 . . Time 114 | . . . 114 . . Parts Recycled . | . . . . . . Recycled Matter . | . . . . . . Retrieved Matter . | . . . . . . Retrieved Components . | . . . . . . Parts Scanalyzed 1 | . . . 1 . . Part Schematics Acquired 1 | . . . 1 . . Parts Damaged . | . . . . . . Bothacking | -11 -10 -10 -9 -9 -9 ------------ Run | Scr Mat Min Mat Min Exi Used RIF Installer . | . . . . . . Robots Hacked . | . . . . . . Non-combat . | . . . . . . Combat . | . . . . . . Robot Hacks Applied . | . . . . . . Relay Couplers Released . | . . . . . . Robots Rewired . | . . . . . . Allies Hacked . | . . . . . . Hacks Repelled . | . . . . . . Allies | -11 -10 -10 -9 -9 -9 -------- Run | Scr Mat Min Mat Min Exi Total Allies 3 | . . . . 3 . Largest Group 3 | . . . . 3 3 Highest-Rated Group 40 | . . . . 40 40 Highest-Rated Ally 16 | . . . . 16 16 Total Orders 8 | . . . . . 8 STAY 4 | . . . . . 4 ROAM 4 | . . . . . 4 Ally Attacks 21 | . . . . . 21 Total Damage 580 | . . . . . 580 Kills 3 | . . . . . 3 Allies Corrupted . | . . . . . . Allies Melted . | . . . . . . Turrets Deployed 3 | . . . . . 3 Intel | -11 -10 -10 -9 -9 -9 ------- Run | Scr Mat Min Mat Min Exi Robot Analysis Total . | . . . . . . Derelict Logs Recovered 2 | . . 1 . 1 . Drone Launches . | . . . . . . Drone Recoveries . | . . . . . . Exploration | -11 -10 -10 -9 -9 -9 ------------- Run | Scr Mat Min Mat Min Exi Turns Passed 2925 | . 63 469 1371 94 928 Spaces Moved 1485 | 1 52 270 676 53 433 Core . | . . . . . . Treads 1085 | . . . 599 53 433 Legs 400 | 1 52 270 77 . . Wheels . | . . . . . . Hover . | . . . . . . Flight . | . . . . . . Fastest Speed 120 | 120 120 120 145 165 145 Average Speed 151 | 120 120 148 146 165 164 Slowest Speed 185 | 120 120 150 165 165 185 Overloaded Moves . | . . . . . . Propulsion Burnouts . | . . . . . . Robots Hopped . | . . . . . . Cave-ins Triggered . | . . . . . . Exploration Rate (%) 33 | 2 14 62 53 8 61 Regions Visited 5 Branch Regions 3 Pre-discovered Areas . | . . . . . . Known Exits Taken 1 | . . . . 1 . Unknown Exits Taken 4 | 1 1 1 1 . . Scrap Searched 4 | . . 4 . . . Spaces Dug 2 | . . . . 2 . Terrain Destroyed 172 | . . 66 72 2 32 Melee . | . . . . . . Projectile 8 | . . . 4 2 2 AOE 164 | . . 66 68 . 30 Actions | -11 -10 -10 -9 -9 -9 --------- Run | Scr Mat Min Mat Min Exi Total 1914 | . 53 311 932 56 562 Wait 172 | . . . 128 2 42 Move 1480 | . 51 269 675 52 433 Hop . | . . . . . . Pick Up 33 | . 1 11 15 . 6 Fast Attach 13 | . . 1 11 . 1 Attach 15 | . . 1 3 . 11 Detach 1 | . . . 1 . . Swap 23 | . . 2 13 . 8 Drop 28 | . 1 5 15 . 7 Fire 149 | . . 22 71 2 54 Melee . | . . . . . . Ram . | . . . . . . Kick . | . . . . . . Crush . | . . . . . . Escape Stasis . | . . . . . . Rewire . | . . . . . . Trap . | . . . . . . Miscellaneous . | . . . . . . Route ------- -11/Scrapyard -10/Materials -10/Mines -9/Materials (discovered 3 exits: *Mat / [*Min] / *Sto) -9/Mines -9/Exiles History --------- Turn | Location | Event 1 | -11/Scrapyard | Discovered new exit (range 0) 1 | -11/Scrapyard | Entered Materials 46 | -10/Materials | Discovered new exit (range 16) 64 | -10/Materials | Entered Mines 308 | -10/Mines | Build established: Mutant 344 | -10/Mines | YI-UF0 nonchalantly dropped a Grenade Launcher on the ground 380 | -10/Mines | Destroyed YI-UF0 382 | -10/Mines | Found Prototype Launcher 385 | -10/Mines | Found Prototype Storage 409 | -10/Mines | Assembled infested the area 417 | -10/Mines | Identified YI-UF0's Doublenader 446 | -10/Mines | Destroyed 12 combat bots 488 | -10/Mines | Discovered new exit (range 13) 503 | -10/Mines | Identified YI-UF0's Bottomless Matter Pit 533 | -10/Mines | Entered Materials 533 | -9/Materials | Evolved 2 slots: Propulsion x1, Utility x1 682 | -9/Materials | Lost 3 parts (1p2w) 813 | -9/Materials | Discovered new exit (range 9) 848 | -9/Materials | Identified exit to Storage 1118 | -9/Materials | Discovered new exit (range 7) 1148 | -9/Materials | Identified exit to Materials 1161 | -9/Materials | Destroyed 12 combat bots 1610 | -9/Materials | Repaired Adv. Treads 1649 | -9/Materials | Repaired Adv. Treads 1689 | -9/Materials | Repaired Adv. Treads 1753 | -9/Materials | Discovered new exit (range 5) 1904 | -9/Materials | Entered Mines 1913 | -9/Mines | Assisted by bots powering up and referring to "LRC-V3" 1941 | -9/Mines | Identified exit to Exiles 1998 | -9/Mines | Entered Exiles 1998 | -9/Exiles | Accompanied by 3 allies 2038 | -9/Exiles | Met 8R-AWN 2066 | -9/Exiles | Met EX-HEX 2112 | -9/Exiles | Met EX-BIN 2135 | -9/Exiles | Aligned with FarCom system 2137 | -9/Exiles | Given EX-Vault access code 2177 | -9/Exiles | Opened EX-Vault 2190 | -9/Exiles | Found Deploy-a-Sentry 2193 | -9/Exiles | Found Deploy-a-Sentry 2196 | -9/Exiles | Found Deploy-a-Sentry 2200 | -9/Exiles | Found Field Lobotomy Kit 2234 | -9/Exiles | Warned to stay clear of 0b10 Research branches 2318 | -9/Exiles | DAS Turret deployed 2322 | -9/Exiles | DAS Turret deployed 2344 | -9/Exiles | DAS Turret deployed 2474 | -9/Exiles | Attacked by the Exiles 2474 | -9/Exiles | Allies destroyed EX-HEX 2584 | -9/Exiles | Destroyed 8R-AWN 2642 | -9/Exiles | Core integrity fell below 50% 2715 | -9/Exiles | Lost 12 parts (2p3n1u6w) 2865 | -9/Exiles | Core integrity fell below 20% 2904 | -9/Exiles | Lost 3 parts (1u2w) 2926 | -9/Exiles | Destroyed by EX-DEC with AWS/EX-DEC Last Messages --------------- 02684_ Hvy. EM Pulse Gun destroyed. 02739_ Extracted 100 matter. 02751_ The unstable cave ceiling collapses. 02752_ Extracted 50 matter. 02761_ Extracted 100 matter. 02811_ Acquired Particle Gun. 02852_ Hrd. Light Armor Plating destroyed. 02860_ Beam Rifle destroyed. 02873_ Particle Gun destroyed. 02877_ DAS Turret destroyed. 02897_ The unstable cave ceiling collapses. 02917_ Lgt. Treads destroyed. 02917_ Machine disabled. 02917_ Testing Chamber Shield damaged. 02917_ AM-PHS destroyed. 02919_ Testing Apparatus damaged. 02921_ Destroyed Mak. Power Source. 02921_ GM-J5T destroyed. 02923_ Machine disabled. 02923_ Destroyed Mak. Shrapnel Gun. Map ----- +----------------------------------------------------+ | ??????????????" | | ?????????????""" | | ?????????????# | | ?????????????#" " "" | | ??????????????"""" ""## ##""" " " | | ?????????????#"" #### ######""" " | | ?????????????#" """"##??# #????###""" | | ?????????????#""" """#??## ####???#### | | ??????????????# ""##??#! "!#??????? | | ??????????????#"" """##???#" !#??????? | | ??????????????##""" ##????#" "#??????? | | ????????????????#"""" ##?????#!!""!"#??????? | | ????????????????### #??????########??????? | | ??????????????????##### ##????????????????????? | | ??????????????????????## #?????????????????????? | | ???????????????????????# #?????????????????????? | | ???????????????????????# #?????????????????????? | | ???????????????????????# #?????????????????????? | | ???????????????????????# #?????????????????????? | | ???????????????????????# #?????????????????????? | | ???????????????????????# #?????????????????????? | | ???????????????????????# #?????????????????????? | | ???????????????????????# #?????????????????????? | | ???????????????????????# #?????????????????????? | | ??????????????????###### #####?????????????????? | | ??????????????????""""" @ """""?????????????????? | | ?????????????? = ! "#??????????????? | | ???????????? ! " ?????????????? | | ??????????? z " "???????????? | | ??????????? c " "???????????? | | ???????????? #""????????????? | | ????????????"" " """""#??????????????? | | ?????????????# ####"""######??????????????? | | ?????????????"" ???? "???????????????????? | | ??????????????"" ????? ""???????????????????? | | ??????????????? " "#?????""""???????????????????? | | ??????????????""""""?????? ""????????????????????? | | ?????????????????????????????????????????????????? | | ?????????????????????????????????????????????????? | | ?????????????????????????????????????????????????? | | ?????????????????????????????????????????????????? | | ?????????????????????????????????????????????????? | | ?????????????????????????????????????????????????? | | | | | | | | | | | | | | | +----------------------------------------------------+ Best States ------------- Heat Dissipation 50 Energy Generation 14 Energy Capacity 265 Matter Stores 300 Matter Capacity 300 Sight Range 16 Terrain Scan Density 10 Armor Coverage 150 Evasion (%) 40 Recoil Reduction 3 Item Schematics ----------------- Hacking Suite | -9/Materials | Scanalyzed Robot Schematics ------------------ None Fabricated ------------ Nothing Alien Tech Used ----------------- None Achievements -------------- None Challenges ------------ None Game ------ Seed ShockBombSegregator Manual? 0 Play Time 00:21:12 Cumulative 314.0 hours Start 2020.06.14 @ 14:32:04 End 2020.06.14 @ 14:52:50 Sessions 1 Manual Loads 0 Difficulty Rogue Special Mode None Game No. 344 Rogue 344 Adventurer 0 Explorer 0 Win Type - Total 29 Types 17/3/2/1/2/1/3 Lore% 93 Gallery% 87 Achievement% 78 Wizard Run 0 Options --------- ASCII 0 Keyboard 0 Movement Arrows Keybinds 0 Fullscreen 2 Font 18/SmallcapsGlow Map View 76x50 Tactical HUD 1 Map Filters NONE Filters NONE Steam 1 RUN: 31736eb7-abff-4b1f-826e-3c92c9e6a723